fUST/lending_fUST_20251017
["ID","MTS","AMOUNT","RATE_DAILY","PERIOD"]
[391526774,1760631640501,-500.0,0.00031529,2]
[391526775,1760631640528,-500.0,0.00031529,2]
[391526776,1760631640561,-500.0,0.00031529,2]
[391526777,1760631640586,-1875.57942362,0.0003153,2]
[391526778,1760631640714,-10000.01,0.0003153,2]
[391526779,1760631640728,-10000.01,0.0003153,2]
[391526780,1760631640743,-10000.01,0.0003153,2]
[391526781,1760631641752,-25000.0,0.0003153,2]
[391526782,1760631642855,-25000.0,0.0003153,2]
[391526783,1760631643295,-10000.01,0.0003153,2]
[391526784,1760631716670,-679.49,0.00028532,2]
[391526801,1760632005066,7014.578,0.0003,2]
[391526802,1760632012817,1000.0,0.000283,2]
[391526803,1760632013134,1000.0,0.000283,2]
[391526806,1760632030132,-520.53282538,0.00030999,2]
[391526807,1760632030154,-400.0,0.00031098,2]
[391526808,1760632030176,-123.13952825,0.00031099,3]
[391526813,1760632062041,985.432,0.0003,2]
[391526814,1760632062065,10000.01,0.0003,2]
[391526815,1760632062088,10000.01,0.0003,2]
[391526816,1760632062111,10000.01,0.0003,2]
[391526817,1760632062134,10000.01,0.0003,2]
[391526818,1760632062160,10000.01,0.0003,2]
[391526819,1760632062185,10000.01,0.0003,2]
[391526820,1760632062210,10000.01,0.0003,2]
[391526821,1760632062233,8228.27367383,0.0003,2]
[391526825,1760632078984,1771.73632617,0.0003,2]
[391526826,1760632079006,1560.8329521,0.0003,2]
[391526827,1760632084587,10000.01,0.0003,2]
[391526828,1760632084613,10000.01,0.0003,2]
[391526829,1760632084640,10000.01,0.0003,2]
[391526831,1760632084670,10000.01,0.0003,2]
[391526832,1760632084697,10000.01,0.0003,2]
[391526833,1760632084724,10000.01,0.0003,2]
[391526834,1760632084748,10000.01,0.0003,2]
[391526835,1760632084775,10000.01,0.0003,2]
[391526836,1760632084800,10000.01,0.0003,2]
[391526837,1760632084833,24320.51,0.0003,2]
[391526842,1760632108142,10000.01,0.0002,7]
[391526843,1760632108167,8957.99,0.0002,7]
[391526846,1760632116730,1042.02,0.00019,2]
[391526847,1760632116759,1622.78861173,0.00019,2]
[391526850,1760632118448,6595.10710702,0.00026,30]
[391526851,1760632118481,24254.58407931,0.00026,30]
[391526852,1760632121831,30000.03,0.0002,2]
[391526854,1760632125517,25060.9307173,0.00024142,2]
[391526855,1760632128416,-6816.38843617,0.000285,7]
[391526856,1760632128527,-3642.10232845,0.000285,7]
[391526857,1760632128551,-2715.8053431,0.000285,7]
[391526858,1760632128666,-10000.01,0.000292,2]
[391526859,1760632128782,-10000.01,0.000292,2]
[391526860,1760632128904,-10000.01,0.000292,2]
[391526862,1760632147993,150.0,0.00025205,2]
[391526863,1760632148435,172.5,0.00025805,2]
[391526864,1760632148876,195.0,0.00026405,2]
[391526865,1760632149304,65.19750931,0.00027005,2]
[391526866,1760632149333,152.30249069,0.00027005,2]
[391526867,1760632149684,240.0,0.00027605,2]
[391526868,1760632150117,262.5,0.00028205,2]
[391526869,1760632150954,285.0,0.00028805,2]
[391526870,1760632152530,271.51196806,0.00028908,2]
[391526871,1760632154189,-6629.01301235,0.000292,2]
[391526872,1760632154220,-307.5,0.00029405,2]
[391526873,1760632154252,-300.0,0.00029989,2]
[391526874,1760632154280,-545.9,0.0002999,10]
[391526875,1760632154308,-454.91,0.0002999,10]
[391526876,1760632154336,-7234.68573104,0.0002999,2]
[391526877,1760632154365,-9527.99125661,0.0003,2]
[391526878,1760632211036,178.0,0.00024,120]
[391526902,1760632236202,-503.83,0.000299,3]
[391526903,1760632236213,-153.25,0.0002995,15]
[391526904,1760632236222,-379.1,0.0002999,10]
[391526905,1760632236234,-300.0,0.00029999,2]
[391526906,1760632236244,-300.0,0.00029999,2]
[391526907,1760632236254,-300.0,0.00029999,2]
[391526908,1760632236264,-300.0,0.00029999,2]
[391526910,1760632236274,-857.93970732,0.00029999,2]
[391526911,1760632236286,-342.06029268,0.00029999,2]
[391526912,1760632236296,-226.15118915,0.00029999,2]
[391526913,1760632236306,-500.0,0.00029999,2]
[391526914,1760632236321,-500.0,0.00029999,2]
[391526915,1760632236331,-449.18082143,0.00029999,2]
[391526917,1760632236344,-500.0,0.00029999,2]
[391526919,1760632236356,-353.85133679,0.00029999,2]
[391526921,1760632236367,-7938.75635995,0.0003,2]
[391526923,1760632236380,-551.42897342,0.0003,2]
[391526924,1760632236393,-3865.7,0.0003,2]
[391526926,1760632236407,-47133.39422119,0.0003,2]
[391526928,1760632236428,-30826.77577881,0.0003,2]
[391526985,1760632238345,-315.91,0.0002999,10]
[391526986,1760632238356,-2917.19,0.0003,2]
[391526987,1760632238368,-1278.17189537,0.0003,2]
[391526988,1760632238380,-1285.31325516,0.0003,2]
[391526989,1760632238390,-1791.41519483,0.0003,2]
[391526990,1760632238400,-4012.02566547,0.0003,2]
[391526991,1760632238415,-3274.53126666,0.0003,2]
[391526992,1760632238425,-785.81490251,0.0003,60]
[391526993,1760632238435,-8631.35428263,0.0003,5]
[391526994,1760632238447,-7087.80065139,0.0003,5]
[391526995,1760632238462,-12076.15340313,0.0003,5]
[391526996,1760632238478,-74983.36759113,0.0003,5]
[391526997,1760632238488,-2117.08509927,0.0003,2]
[391526998,1760632238498,-330.0,0.00030005,2]
[391526999,1760632238508,-153.25,0.0003005,15]
[391527000,1760632238523,-153.25,0.0003015,15]
[391527001,1760632238534,-153.28,0.0003025,15]
[391527002,1760632238544,-4795.71383847,0.00031,7]
[391527003,1760632238554,-10263.17,0.00031099,2]
[391527004,1760632238569,-383.05745712,0.000311,2]
[391527005,1760632238579,-267.41458037,0.000311,2]
[391527006,1760632238591,-496.05036744,0.000311,2]
[391527007,1760632238602,-167.41556492,0.000311,2]
[391527008,1760632238611,-308.09290782,0.000311,2]
[391527009,1760632238621,-407.66045884,0.000311,2]
[391527010,1760632238633,-206.25203996,0.000311,2]
[391527011,1760632238643,-1484.0,0.000312,120]
[391527012,1760632238652,-165.37726375,0.00031399,2]
[391527013,1760632238662,-383.05745712,0.000314,2]
[391527014,1760632238671,-267.41458037,0.000314,2]
[391527015,1760632238681,-496.05036744,0.000314,2]
[391527016,1760632238691,-308.09290782,0.000314,2]
[391527017,1760632238700,-407.66045884,0.000314,2]
[391527018,1760632238711,-1568.97852336,0.00031429,2]
[391527019,1760632238722,-7883.33465838,0.00031473,2]
[391527020,1760632238733,-174.61919141,0.00031493,2]
[391527021,1760632238744,-664.64201813,0.00031497,2]
[391527022,1760632238760,-2952.70084739,0.00031497,2]
[391527023,1760632238771,-11997.0994441,0.00031507,2]
[391527024,1760632238782,-470.758876,0.00031507,2]
[391527025,1760632238794,-226.31575837,0.00031511,2]
[391527026,1760632238804,-380.14356082,0.00031511,2]
[391527027,1760632238814,-7517.8171301,0.00031512,2]
[391527028,1760632238830,-156.059885,0.00031512,2]
[391527029,1760632238842,-2611.6975056,0.00031512,2]
[391527030,1760632238854,-21704.0571931,0.0003152,2]
[391527031,1760632238864,-150.0,0.00031529,2]
[391527032,1760632238875,-1136.11,0.00031529,2]
[391527033,1760632238886,-1999.0,0.00031529,2]
[391527034,1760632238896,-233109.95246756,0.0003153,2]
[391527035,1760632238907,-2386.2,0.0003153,2]
[391527036,1760632238919,-42628.22810882,0.0003153,2]
[391527037,1760632238929,-500.0,0.0003153,2]
[391527038,1760632238939,-500.0,0.00031573,2]
[391527039,1760632238948,-500.0,0.00031573,5]
[391527040,1760632238958,-304.61,0.000316,2]
[391527041,1760632238967,-1286.08,0.000316,7]
[391527042,1760632238978,-500.0,0.00031629,60]
[391527043,1760632238988,-383.05745712,0.000317,2]
[391527044,1760632238998,-267.41458037,0.000317,2]
[391527045,1760632239009,-496.05036744,0.000317,2]
[391527046,1760632239018,-308.09290782,0.000317,2]
[391527047,1760632239028,-407.66045884,0.000317,2]
[391527048,1760632239039,-300.0,0.00031721,30]
[391527049,1760632239049,-300.0,0.00031721,30]
[391527050,1760632239059,-300.0,0.00031721,30]
[391527051,1760632239073,-300.0,0.00031721,30]
[391527052,1760632239083,-300.0,0.00031721,30]
[391527053,1760632239094,-300.0,0.00031721,30]
[391527054,1760632239104,-300.0,0.00031721,30]
[391527055,1760632239114,-300.0,0.00031721,30]
[391527056,1760632239124,-300.0,0.00031721,30]
[391527057,1760632239135,-300.0,0.00031721,30]
[391527058,1760632239146,-300.0,0.00031721,30]
[391527059,1760632239157,-300.0,0.00031721,30]
[391527060,1760632239166,-300.0,0.00031721,30]
[391527061,1760632239176,-300.0,0.00031721,30]
[391527062,1760632239187,-300.0,0.00031721,30]
[391527063,1760632239196,-160.0,0.00031731,2]
[391527064,1760632239210,-500.0,0.00031804,2]
[391527065,1760632239222,-349.74,0.00031945,120]
[391527066,1760632239233,-383.05745712,0.00032,2]
[391527067,1760632239244,-267.41458037,0.00032,2]
[391527068,1760632239254,-496.05036744,0.00032,2]
[391527069,1760632239264,-308.09290782,0.00032,2]
[391527070,1760632239274,-407.66045884,0.00032,2]
[391527071,1760632239285,-600.0,0.00032027,30]
[391527072,1760632239296,-1000.0,0.00032121,5]
[391527073,1760632239306,-751.0,0.00032121,2]
[391527074,1760632239318,-500.0,0.00032251,60]
[391527075,1760632239328,-538.1013348,0.00032259,60]
[391527076,1760632239338,-260.0,0.00032279,2]
[391527077,1760632239348,-383.05745712,0.000323,2]
[391527078,1760632239359,-267.41458037,0.000323,2]
[391527079,1760632239368,-496.05036744,0.000323,2]
[391527080,1760632239378,-308.09290782,0.000323,2]
[391527081,1760632239388,-407.66045884,0.000323,2]
[391527082,1760632239398,-420.0,0.00032332,3]
[391527083,1760632239407,-420.0,0.00032332,3]
[391527084,1760632239417,-420.0,0.00032332,2]
[391527085,1760632239427,-420.0,0.00032332,3]
[391527086,1760632239436,-1680.0,0.0003247,3]
[391527087,1760632239446,-500.0,0.00032573,5]
[391527088,1760632239457,-500.0,0.00032573,5]
[391527089,1760632239467,-1500.0,0.00032668,5]
[391527090,1760632239477,-500.92734963,0.00032673,5]
[391527091,1760632239488,-500.0,0.00032673,5]
[391527092,1760632239497,-367.31406277,0.00032673,5]
[391527093,1760632239507,-500.0,0.00032673,5]
[391527094,1760632239522,-500.0,0.00032673,3]
[391527095,1760632239532,-500.0,0.00032673,5]
[391527096,1760632239544,-500.0,0.00032673,5]
[391527097,1760632239558,-500.0,0.00032673,5]
[391527098,1760632239573,-1083.48,0.00032686,3]
[391527099,1760632239585,-541.74,0.00032686,3]
[391527100,1760632239595,-270.87,0.00032686,3]
[391527101,1760632239606,-812.62,0.00032686,3]
[391527102,1760632239616,-480.81443187,0.0003269,60]
[391527103,1760632239627,-500.0,0.0003269,60]
[391527104,1760632239646,-500.90624379,0.0003269,60]
[391527105,1760632239656,-500.0,0.0003269,60]
[391527106,1760632239666,-500.0,0.0003269,60]
[391527107,1760632239676,-500.0,0.0003269,60]
[391527108,1760632239686,-500.0,0.0003269,60]
[391527109,1760632239697,-500.0,0.0003269,60]
[391527110,1760632239706,-500.0,0.0003269,60]
[391527111,1760632239716,-500.0,0.0003269,60]
[391527112,1760632239727,-502.16893653,0.0003269,60]
[391527114,1760632239738,-500.0,0.0003269,60]
[391527115,1760632239747,-239.50747893,0.0003269,60]
[391527116,1760632239757,-642.89,0.0003269,30]
[391527117,1760632239768,-389.24157353,0.0003269,60]
[391527118,1760632239777,-500.0,0.0003269,60]
[391527119,1760632239787,-480.0,0.0003269,60]
[391527120,1760632239796,-1432.45,0.0003269,60]
[391527121,1760632239806,-1432.45,0.0003269,60]
[391527122,1760632239816,-1432.45,0.0003269,60]
[391527123,1760632239827,-1432.45,0.0003269,60]
[391527124,1760632239838,-448.9789228,0.0003269,60]
[391527125,1760632239848,-1432.45,0.0003269,60]
[391527126,1760632239858,-1432.45,0.0003269,60]
[391527127,1760632239869,-1432.45,0.0003269,60]
[391527128,1760632239879,-1432.45,0.0003269,60]
[391527129,1760632239891,-1432.45,0.0003269,60]
[391527130,1760632239901,-1432.45,0.0003269,60]
[391527131,1760632239911,-1432.45,0.0003269,60]
[391527133,1760632239921,-1432.45,0.0003269,60]
[391527137,1760632239932,-500.0,0.0003269,60]
[391527138,1760632239942,-1432.45,0.0003269,60]
[391527139,1760632239952,-179.51765596,0.0003269,60]
[391527140,1760632239962,-1432.45,0.0003269,60]
[391527141,1760632239972,-500.0,0.0003269,60]
[391527142,1760632239981,-1432.45,0.0003269,60]
[391527143,1760632239991,-528.39482254,0.0003269,60]
[391527144,1760632240003,-1432.45,0.0003269,60]
[391527145,1760632240013,-1432.45,0.0003269,60]
[391527146,1760632240023,-1432.45,0.0003269,60]
[391527147,1760632240032,-1432.45,0.0003269,60]
[391527148,1760632240042,-1432.45,0.0003269,60]
[391527149,1760632240052,-1432.45,0.0003269,60]
[391527151,1760632240061,-1432.45,0.0003269,60]
[391527152,1760632240078,-1432.45,0.0003269,60]
[391527153,1760632240087,-1432.4616,0.0003269,60]
[391527154,1760632240100,-500.0,0.0003269,60]
[391527155,1760632240111,-500.0,0.0003269,60]
[391527156,1760632240122,-500.0,0.0003269,60]
[391527158,1760632240133,-643.3462637,0.0003269,60]
[391527160,1760632240143,-500.0,0.0003269,60]
[391527162,1760632240158,-464.02,0.0003269,60]
[391527164,1760632240169,-500.0,0.0003269,60]
[391527166,1760632240179,-500.0,0.0003269,60]
[391527168,1760632240189,-505.53315587,0.0003269,60]
[391527170,1760632240200,-264.73331242,0.0003269,60]
[391527172,1760632240210,-500.0,0.0003269,60]
[391527174,1760632240220,-280.0,0.0003269,120]
[391527176,1760632240230,-500.0,0.0003269,60]
[391527178,1760632240243,-500.0,0.0003269,60]
[391527180,1760632240252,-500.0,0.0003269,60]
[391527182,1760632240262,-343.73702116,0.0003269,60]
[391527184,1760632240272,-500.7,0.0003269,60]
[391527186,1760632240282,-500.0,0.0003269,60]
[391527188,1760632240291,-500.0,0.0003269,60]
[391527190,1760632240302,-500.0,0.0003269,60]
[391527192,1760632240313,-219.74,0.0003269,60]
[391527194,1760632240330,-500.0,0.0003269,60]
[391527196,1760632240341,-500.0,0.0003269,60]
[391527198,1760632240352,-500.0,0.0003269,60]
[391527200,1760632240363,-500.0,0.0003269,60]
[391527203,1760632240376,-500.0,0.0003269,60]
[391527205,1760632240386,-500.0,0.0003269,60]
[391527207,1760632240396,-500.0,0.0003269,60]
[391527209,1760632240406,-502.45846065,0.0003269,60]
[391527211,1760632240416,-500.0,0.0003269,60]
[391527212,1760632240427,-500.0,0.0003269,60]
[391527214,1760632240437,-500.00000003,0.0003269,60]
[391527216,1760632240447,-504.17224327,0.0003269,60]
[391527218,1760632240457,-500.0,0.0003269,60]
[391527220,1760632240467,-500.0,0.0003269,60]
[391527222,1760632240479,-500.76029854,0.0003269,60]
[391527224,1760632240489,-500.0,0.0003269,60]
[391527226,1760632240499,-500.0,0.0003269,60]
[391527228,1760632240509,-500.0,0.0003269,60]
[391527230,1760632240523,-500.0,0.0003269,60]
[391527233,1760632240533,-500.0,0.0003269,60]
[391527235,1760632240543,-421.83406148,0.0003269,60]
[391527237,1760632240552,-500.80769288,0.0003269,60]
[391527239,1760632240564,-500.0,0.0003269,60]
[391527241,1760632240580,-500.0,0.0003269,60]
[391527243,1760632240589,-500.0,0.0003269,60]
[391527245,1760632240598,-500.0,0.0003269,60]
[391527247,1760632240611,-500.0,0.0003269,60]
[391527249,1760632240620,-500.0,0.0003269,60]
[391527251,1760632240630,-500.0,0.0003269,60]
[391527253,1760632240639,-505.14886751,0.0003269,60]
[391527254,1760632240649,-500.0,0.0003269,60]
[391527257,1760632240659,-500.0,0.0003269,60]
[391527259,1760632240669,-500.0,0.0003269,60]
[391527260,1760632240678,-500.0,0.0003269,60]
[391527263,1760632240688,-500.0,0.0003269,60]
[391527265,1760632240698,-500.0,0.0003269,60]
[391527267,1760632240707,-500.0,0.0003269,60]
[391527269,1760632240718,-500.00000002,0.0003269,60]
[391527271,1760632240728,-1026.59,0.0003269,60]
[391527273,1760632240739,-1026.59,0.0003269,60]
[391527275,1760632240753,-1026.59,0.0003269,60]
[391527277,1760632240763,-1026.59,0.0003269,60]
[391527279,1760632240772,-1026.59,0.0003269,60]
[391527281,1760632240782,-1026.59,0.0003269,60]
[391527282,1760632240791,-1026.59,0.0003269,60]
[391527284,1760632240801,-1026.59,0.0003269,60]
[391527287,1760632240813,-1026.59,0.0003269,60]
[391527289,1760632240830,-1026.59,0.0003269,60]
[391527291,1760632240841,-1026.59,0.0003269,60]
[391527293,1760632240852,-1026.59,0.0003269,60]
[391527295,1760632240860,-1026.59,0.0003269,60]
[391527297,1760632240870,-1026.59,0.0003269,60]
[391527298,1760632240880,-1026.59,0.0003269,60]
[391527300,1760632240891,-1026.59,0.0003269,60]
[391527302,1760632240900,-1026.59,0.0003269,60]
[391527304,1760632240910,-1026.59,0.0003269,60]
[391527306,1760632240920,-1026.59,0.0003269,60]
[391527308,1760632240929,-1026.59,0.0003269,60]
[391527310,1760632240938,-1026.59,0.0003269,60]
[391527312,1760632240947,-1026.59,0.0003269,60]
[391527314,1760632240956,-500.0,0.0003269,15]
[391527316,1760632240966,-1026.59,0.0003269,60]
[391527318,1760632240975,-500.0,0.0003269,15]
[391527320,1760632240984,-1026.642437,0.0003269,60]
[391527322,1760632240993,-500.0,0.0003269,15]
[391527324,1760632241003,-500.0,0.0003269,15]
[391527326,1760632241013,-500.0,0.0003269,15]
[391527328,1760632241023,-500.0,0.0003269,15]
[391527331,1760632241033,-500.0,0.0003269,15]
[391527334,1760632241043,-500.0,0.0003269,15]
[391527337,1760632241053,-500.0,0.0003269,15]
[391527340,1760632241063,-500.0,0.0003269,15]
[391527343,1760632241079,-500.0,0.0003269,15]
[391527346,1760632241089,-500.0,0.0003269,15]
[391527349,1760632241099,-225.84633797,0.0003269,15]
[391527352,1760632241108,-500.0,0.0003269,60]
[391527355,1760632241119,-500.0,0.0003269,60]
[391527359,1760632241129,-500.0,0.0003269,60]
[391527362,1760632241140,-500.0,0.0003269,60]
[391527365,1760632241151,-328.64473725,0.0003269,60]
[391527368,1760632241161,-643.31,0.0003269,60]
[391527371,1760632241170,-503.05416711,0.0003269,60]
[391527374,1760632241179,-500.0,0.0003269,60]
[391527377,1760632241189,-500.0,0.0003269,60]
[391527380,1760632241199,-500.0,0.0003269,60]
[391527383,1760632241208,-500.0,0.0003269,60]
[391527385,1760632241217,-500.0,0.0003269,60]
[391527388,1760632241227,-548.99,0.0003269,60]
[391527412,1760632241356,-500.0,0.0003269,60]
[391527414,1760632241367,-500.0,0.0003269,60]
[391527416,1760632241377,-500.0,0.0003269,60]
[391527418,1760632241387,-500.0,0.0003269,60]
[391527420,1760632241396,-501.75501672,0.0003269,60]
[391527423,1760632241407,-500.0,0.0003269,60]
[391527424,1760632241416,-500.0,0.0003269,60]
[391527427,1760632241426,-500.0,0.0003269,60]
[391527428,1760632241436,-403.04,0.0003269,60]
[391527430,1760632241446,-500.0,0.0003269,60]
[391527432,1760632241455,-510.1,0.0003269,60]
[391527434,1760632241465,-628.20353952,0.0003269,60]
[391527436,1760632241475,-500.0,0.0003269,60]
[391527438,1760632241485,-500.0,0.0003269,60]
[391527440,1760632241494,-500.0,0.0003269,60]
[391527442,1760632241504,-500.0,0.0003269,60]
[391527444,1760632241514,-463.06402748,0.0003269,60]
[391527446,1760632241526,-500.0,0.0003269,60]
[391527448,1760632241539,-500.00543731,0.0003269,60]
[391527450,1760632241550,-500.0,0.0003269,60]
[391527452,1760632241559,-482.27098122,0.0003269,60]
[391527454,1760632241574,-501.39167991,0.0003269,60]
[391527456,1760632241584,-500.0,0.0003269,60]
[391527458,1760632241594,-500.0,0.0003269,60]
[391527460,1760632241604,-500.0,0.0003269,60]
[391527462,1760632241616,-500.0,0.0003269,60]
[391527465,1760632241629,-576.91932274,0.0003269,60]
[391527466,1760632241640,-500.0,0.0003269,60]
[391527468,1760632241650,-500.0,0.0003269,60]
[391527471,1760632241662,-500.0,0.0003269,14]
[391527472,1760632241673,-500.0,0.0003269,60]
[391527474,1760632241683,-480.0,0.0003269,60]
[391527476,1760632241695,-500.0,0.0003269,60]
[391527478,1760632241706,-503.09458574,0.0003269,60]
[391527481,1760632241716,-500.0,0.0003269,60]
[391527482,1760632241726,-627.87410586,0.0003269,120]
[391527484,1760632241736,-500.0,0.0003269,60]
[391527486,1760632241746,-500.0,0.0003269,60]
[391527488,1760632241756,-500.0,0.0003269,60]
[391527490,1760632241765,-500.0,0.0003269,60]
[391527492,1760632241776,-128748.01243191,0.0003269,20]
[391527495,1760632241786,-500.0,0.0003269,60]
[391527496,1760632241796,-500.0,0.0003269,60]
[391527499,1760632241807,-500.0,0.0003269,60]
[391527501,1760632241822,-500.0,0.0003269,60]
[391527503,1760632241834,-203.09792972,0.0003269,60]
[391527505,1760632241845,-500.52230088,0.0003269,60]
[391527507,1760632241855,-475.15459922,0.0003269,2]
[391527509,1760632241864,-500.0,0.0003269,60]
[391527511,1760632241873,-500.0,0.0003269,60]
[391527513,1760632241882,-605.57351798,0.0003269,60]
[391527515,1760632241892,-500.0,0.0003269,60]
[391527517,1760632241902,-504.40504094,0.0003269,60]
[391527518,1760632241912,-500.0,0.0003269,60]
[391527521,1760632241922,-500.0,0.0003269,60]
[391527523,1760632241931,-503.78122178,0.0003269,60]
[391527525,1760632241941,-500.0,0.0003269,60]
[391527527,1760632241951,-500.0,0.0003269,60]
[391527529,1760632241960,-505.26675871,0.0003269,60]
[391527531,1760632241970,-905.86043976,0.0003269,2]
[391527533,1760632241979,-203.32846428,0.0003269,2]
[391527535,1760632241988,-1054.45340942,0.0003269,2]
[391527537,1760632241998,-507.62013432,0.0003269,60]
[391527538,1760632242007,-360.0,0.00032827,2]
[391527539,1760632242016,-3617.34286552,0.00032889,2]
[391527540,1760632242025,-500.0,0.00032899,2]
[391527541,1760632242036,-572.31536034,0.00032899,120]
[391527542,1760632242045,-162.96164285,0.000332,117]
[391527543,1760632242054,-1500.0,0.00033216,5]
[391527544,1760632242063,-1000.0,0.00033221,5]
[391527545,1760632242080,-500.0,0.00033221,3]
[391527546,1760632242090,-1000.0,0.00033221,5]
[391527547,1760632242100,-1000.0,0.00033221,5]
[391527548,1760632242109,-1000.0,0.00033221,5]
[391527549,1760632242119,-460.0,0.00033375,2]
[391527550,1760632242128,-1500.0,0.00033768,5]
[391527551,1760632242137,-315.95923357,0.00033768,5]
[391527552,1760632242146,-1500.0,0.00033768,5]
[391527553,1760632242156,-1500.0,0.00033768,5]
[391527554,1760632242165,-560.0,0.00033923,2]
[391527555,1760632242175,-22918.11813602,0.00034,120]
[391527556,1760632242184,-3617.34286552,0.00034046,2]
[391527557,1760632242193,-2166.96,0.00034056,3]
[391527558,1760632242202,-1083.48,0.00034056,3]
[391527559,1760632242211,-541.74,0.00034056,3]
[391527560,1760632242220,-2421.13,0.000341,14]
[391527561,1760632242229,-500.0,0.00034269,2]
[391527562,1760632242239,-300.0,0.00034269,7]
[391527563,1760632242248,-1568.97852335,0.00034297,2]
[391527564,1760632242258,-2000.0,0.00034316,5]
[391527565,1760632242268,-2000.0,0.00034316,5]
[391527566,1760632242278,-2000.0,0.00034316,5]
[391527567,1760632242288,-660.0,0.00034471,2]
[391527568,1760632242298,-164.0,0.00034847,3]
[391527569,1760632242308,-587.0,0.00034847,2]
[391527570,1760632242321,-587.0,0.00034847,3]
[391527571,1760632242331,-500.0,0.00034864,5]
[391527572,1760632242343,-2500.0,0.00034864,5]
[391527573,1760632242353,-2500.0,0.00034864,5]
[391527574,1760632242364,-14600.21750392,0.00035,14]
[391527576,1760632242374,-655.16128073,0.00035,2]
[391527578,1760632242385,-4023.66302063,0.00035,2]
[391527580,1760632242396,-760.0,0.00035019,2]
[391527582,1760632242406,-470.758876,0.00035062,2]
[391527584,1760632242415,-2351.0,0.00035144,3]
[391527586,1760632242425,-720.0,0.0003523,30]
[391527589,1760632242436,-3617.34286552,0.00035402,3]
[391527591,1760632242447,-1034.29564079,0.00035412,5]
[391527593,1760632242458,-3000.0,0.00035412,5]
[391527595,1760632242469,-406.88761255,0.00035567,2]
[391527597,1760632242478,-156.059885,0.00035608,2]
[391527599,1760632242488,-500.0,0.00035639,2]
[391527601,1760632242497,-3500.0,0.0003596,5]
[391527603,1760632242508,-3000.0,0.00036,30]
[391527605,1760632242523,-2676.9147202,0.00036266,2]
[391527607,1760632242532,-631.0,0.00036401,2]
[391527609,1760632242542,-530.518,0.00036401,2]
[391527611,1760632242552,-4000.0,0.00036508,5]
[391527613,1760632242563,-680.39,0.00036638,2]
[391527614,1760632242576,-333551.01,0.00037,7]
[391527617,1760632242587,-209.52841335,0.00037009,2]
[391527618,1760632242600,-450.0,0.00037009,12]
[391527620,1760632242610,-4587.41344845,0.00037056,5]
[391527622,1760632242620,-1568.97852335,0.00037165,2]
[391527624,1760632242630,-345.8401613,0.00037167,2]
[391527626,1760632242640,-7883.33465836,0.00037187,2]
[391527628,1760632242649,-178.0,0.000373,120]
[391527630,1760632242659,-666.0,0.00037321,2]
[391527632,1760632242670,-597.3004102,0.00037328,2]
[391527634,1760632242679,-523.0,0.00037557,3]
[391527636,1760632242689,-502.95316266,0.0003765,5]
[391527638,1760632242699,-500.0,0.0003765,5]
[391527640,1760632242708,-500.0,0.0003765,5]
[391527642,1760632242718,-500.0,0.0003765,5]
[391527644,1760632242727,-500.0,0.0003765,5]
[391527646,1760632242736,-416.88583763,0.0003765,5]
[391527648,1760632242746,-500.0,0.0003765,5]
[391527650,1760632242756,-300.81001478,0.0003765,5]
[391527652,1760632242766,-1013.80930367,0.000378,2]